[Event "Najdorf Memorial-A 2022"]
[Site "Warsaw"]
[Date "2022.07.11"]
[Round "3.10"]
[White "Backiel, Hubert"]
[Black "Markiewicz, Jerzy"]
[Result "1/2-1/2"]
[ECO "E77"]
[WhiteElo "2045"]
[BlackElo "2205"]
[Annotator "ChessBase"]
[PlyCount "132"]
[EventDate "2022.07.09"]
[EventType "swiss"]
[EventCountry "POL"]
[SourceTitle "playchess.com"]
[Source "ChessBase"]
[SourceQuality "1"]
[TimeControl "40/5400+30:1800+30"]

1. d4 {[%emt 0:00:04]} Nf6 {[%emt 0:00:07]} 2. c4 {[%emt 0:00:06]} c5 {[%emt 0:00:40]} 3. d5 {[%emt 0:00:12]} d6 {[%emt 0:00:07]} 4. Nc3 {[%emt 0:00:16]} g6 {[%emt 0:00:06]} 5. e4 {[%emt 0:01:26]} Bg7 {[%emt 0:00:08]} 6. f4 {[%emt 0:21:52]} O-O {[%emt 0:00:11]} 7. Nf3 {[%emt 0:00:48]} e6 {[%emt 0:00:31]} 8. Bd3 {[%emt 0:05:57]} exd5 {[%emt 0:00:56]} 9. cxd5 {[%emt 0:00:16]} Re8 {[%emt 0:07:07]} 10. O-O {[%emt 0:00:19]} c4 {[%emt 0:00:03]} 11. Bc2 {[%emt 0:02:51]} b5 {[%emt 0:01:25]} 12. a3 {[%emt 0:07:18]} Qb6+ {[%emt 0:05:11]} 13. Kh1 {[%emt 0:04:12]} Nbd7 {[%emt 0:00:15]} 14. Qe2 {[%emt 0:02:33]} a5 {[%emt 0:08:13]} 15. Be3 {[%emt 0:01:32]} Qb8 {[%emt 0:00:03]} 16. Nd4 {[%emt 0:05:17]} Ba6 {[%emt 0:00:07]} 17. Qf3 {[%emt 0:03:54]} Qb7 {[%emt 0:06:45]} 18. Nc6 {[%emt 0:01:10]} Qc7 {[%emt 0:00:05]} 19. Bd4 {[%emt 0:10:41]} Nb8 {[%emt 0:00:16]} 20. e5 {[%emt 0:03:35]} Nxc6 {[%emt 0:06:03]} 21. dxc6 {[%emt 0:00:21]} dxe5 {[%emt 0:00:14]} 22. fxe5 {[%emt 0:02:42]} Rxe5 {[%emt 0:00:07]} 23. Bxe5 {[%emt 0:02:01]} Qxe5 {[%emt 0:00:06]} 24. Rae1 {[%emt 0:03:10]} Qc7 {[%emt 0:00:19]} 25. Be4 {[%emt 0:04:18]} Rf8 {[%emt 0:01:14]} 26. Nd5 {[%emt 0:03:43]} Nxd5 {[%emt 0:00:07]} 27. Bxd5 {[%emt 0:00:01]} Bxb2 {[%emt 0:00:11]} 28. Re8 {[%emt 0:00:36]} Rxe8 {[%emt 0:02:42]} 29. Bxf7+ {[%emt 0:00:08]} Kg7 {[%emt 0:00:15]} 30. Bxe8 {[%emt 0:00:07]} Qe7 {[%emt 0:00:11]} 31. Qd5 {[%emt 0:04:37]} Bf6 {[%emt 0:03:39]} 32. Qd7 {[%emt 0:02:10]} Qxd7 {[%emt 0:02:17]} 33. Bxd7 {[%emt 0:00:23]} Be5 {[%emt 0:00:48]} 34. Be6 {[%emt 0:00:46]} b4 {[%emt 0:00:30]} 35. axb4 {[%emt 0:01:12]} axb4 {[%emt 0:00:05]} 36. Rf7+ {[%emt 0:06:14]} Kh6 {[%emt 0:00:06]} 37. Ra7 {[%emt 0:01:38]} c3 {[%emt 0:00:18]} 38. Bb3 {[%emt 0:00:23]} Bc4 {[%emt 0:00:07]} 39. Bc2 {[%emt 0:00:38]} b3 {[%emt 0:00:15]} 40. Bxb3 {[%emt 0:00:00]} Bxb3 {[%emt 0:00:00]} 41. c7 {[%emt 0:03:42]} Be6 {[%emt 0:00:15]} 42. Ra6 {[%emt 0:05:20]} Bc8 {[%emt 0:03:21]} 43. Ra5 {[%emt 0:02:50]} Bf6 {[%emt 0:01:02]} 44. Rc5 {[%emt 0:06:43]} Kg7 {[%emt 0:00:12]} 45. Rc6 {[%emt 0:00:44]} Kf7 {[%emt 0:00:15]} 46. Kg1 {[%emt 0:04:29]} Ke7 {[%emt 0:00:06]} 47. Kf2 {[%emt 0:00:03]} Kd7 {[%emt 0:00:30]} 48. Rc4 {[%emt 0:01:10]} Kd6 {[%emt 0:00:05]} 49. Ke1 {[%emt 0:01:54]} Kd5 {[%emt 0:00:23]} 50. Ra4 {[%emt 0:00:53]} Kc6 {[%emt 0:05:57]} 51. Rc4+ {[%emt 0:01:58]} Kb5 {[%emt 0:00:18]} 52. Re4 {[%emt 0:01:19]} Kc6 {[%emt 0:02:23]} 53. Rc4+ {[%emt 0:00:11]} Kd6 {[%emt 0:02:33]} 54. Kd1 {[%emt 0:00:31]} Be5 {[%emt 0:00:19]} 55. Kc2 {[%emt 0:01:42]} h5 {[%emt 0:00:11]} 56. h3 {[%emt 0:00:38]} Kd5 {[%emt 0:00:23]} 57. Kb3 {[%emt 0:00:24]} Kd6 {[%emt 0:01:26]} 58. g4 {[%emt 0:02:14]} hxg4 {[%emt 0:00:39]} 59. hxg4 {[%emt 0:00:02]} g5 {[%emt 0:00:12]} 60. Kc2 {[%emt 0:00:32]} Kd7 {[%emt 0:00:28]} 61. Rc5 {[%emt 0:00:44]} Bf6 {[%emt 0:00:18]} 62. Rf5 {[%emt 0:00:21]} Be7 {[%emt 0:01:00]} 63. Rf7 {[%emt 0:01:38]} Ke8 {[%emt 0:00:16]} 64. Rg7 {[%emt 0:01:30]} Kf8 {[%emt 0:00:14]} 65. Rg6 {[%emt 0:00:16]} Kf7 {[%emt 0:02:52]} 66. Rb6 {[%emt 0:00:09]} Ke8 1/2-1/2

[Event "Najdorf Memorial-A 2022"]
[Site "Warsaw"]
[Date "2022.07.11"]
[Round "3.10"]
[White "Dovzhenko, Alexander"]
[Black "Basiaga, Sebastian"]
[Result "1-0"]
[ECO "A05"]
[WhiteElo "1973"]
[BlackElo "1770"]
[Annotator "ChessBase"]
[PlyCount "41"]
[EventDate "2022.07.09"]
[EventType "swiss"]
[EventCountry "POL"]
[SourceTitle "playchess.com"]
[Source "ChessBase"]
[SourceQuality "1"]
[TimeControl "40/5400+30:1800+30"]

1. Nf3 Nf6 2. g3 d5 3. Bg2 Bf5 4. c4 c6 5. Qb3 Qb6 6. O-O Qxb3 7. axb3 e6 8. Nc3 {[%emt 0:07:50]} Nbd7 9. d3 Be7 10. Re1 Nc5 11. Nd4 Bg6 12. b4 Na6 13. b5 Nb4 14. bxc6 bxc6 15. cxd5 cxd5 16. Ra4 O-O 17. Bd2 Rfc8 18. Ncb5 Nc2 19. Nxc2 Rxc2 20. Bc3 Bh5 21. Nd4 1-0

[Event "Najdorf Memorial-A 2022"]
[Site "Warsaw"]
[Date "2022.07.11"]
[Round "3.11"]
[White "Kaczmarek, Arkadiusz"]
[Black "Kaczmarska, Joanna"]
[Result "1-0"]
[ECO "D27"]
[WhiteElo "2147"]
[BlackElo "1965"]
[Annotator "ChessBase"]
[PlyCount "91"]
[EventDate "2022.07.09"]
[EventType "swiss"]
[EventCountry "POL"]
[SourceTitle "playchess.com"]
[Source "ChessBase"]
[SourceQuality "1"]
[TimeControl "40/5400+30:1800+30"]

1. d4 {[%emt 0:00:06]} d5 {[%emt 0:00:01]} 2. c4 {[%emt 0:00:21]} dxc4 {[%emt 0:00:06]} 3. Nf3 {[%emt 0:00:26]} Nf6 {[%emt 0:00:10]} 4. e3 {[%emt 0:00:21]} e6 {[%emt 0:00:06]} 5. Bxc4 {[%emt 0:00:25]} c5 {[%emt 0:00:10]} 6. O-O {[%emt 0:00:58]} a6 {[%emt 0:00:14]} 7. b3 {[%emt 0:08:03]} b5 {[%emt 0:06:16]} 8. Be2 {[%emt 0:00:36]} Bb7 {[%emt 0:02:07]} 9. Bb2 {[%emt 0:00:24]} Nbd7 {[%emt 0:02:33]} 10. a4 {[%emt 0:01:28]} bxa4 {[%emt 0:06:09]} 11. Rxa4 {[%emt 0:00:32]} Nb6 {[%emt 0:00:38]} 12. Ra1 {[%emt 0:01:01]} cxd4 {[%emt 0:05:48]} 13. Bxd4 {[%emt 0:01:10]} Be7 {[%emt 0:10:02]} 14. Nc3 {[%emt 0:16:44]} O-O {[%emt 0:01:50]} 15. Ne5 {[%emt 0:00:35]} Nbd5 {[%emt 0:08:49]} 16. Na4 {[%emt 0:02:49]} Rc8 {[%emt 0:08:57]} 17. Bf3 {[%emt 0:16:49]} Bd6 {[%emt 0:12:53]} 18. Nc4 {[%emt 0:08:39]} Bb8 {[%emt 0:06:11]} 19. Nc5 {[%emt 0:16:04]} Nc3 {[%emt 0:13:52]} 20. Nxb7 {[%emt 0:11:26]} Qc7 {[%emt 0:02:33]} 21. Be5 {[%emt 0:00:18]} Qxe5 {[%emt 0:00:38]} 22. Nxe5 {[%emt 0:00:25]} Nxd1 {[%emt 0:00:06]} 23. Nc6 {[%emt 0:00:37]} Rc7 {[%emt 0:05:16]} 24. Nxb8 {[%emt 0:01:25]} Rxb8 {[%emt 0:02:47]} 25. Rfxd1 {[%emt 0:00:29]} Nd5 {[%emt 0:00:03]} 26. Na5 {[%emt 0:02:59]} Rc5 {[%emt 0:03:22]} 27. Bxd5 {[%emt 0:04:30]} exd5 {[%emt 0:00:22]} 28. Rdc1 {[%emt 0:00:30]} Rbb5 {[%emt 0:01:48]} 29. b4 {[%emt 0:01:39]} Rxc1+ {[%emt 0:00:13]} 30. Rxc1 {[%emt 0:00:02]} g6 {[%emt 0:00:19]} 31. Nc6 {[%emt 0:00:13]} Kf8 {[%emt 0:01:03]} 32. Kf1 {[%emt 0:01:20]} Ke8 {[%emt 0:00:31]} 33. Ke2 {[%emt 0:01:44]} f6 {[%emt 0:00:31]} 34. Rb1 {[%emt 0:01:32]} Kd7 {[%emt 0:00:24]} 35. Nd4 {[%emt 0:00:02]} Rb6 {[%emt 0:00:17]} 36. Kd3 {[%emt 0:00:37]} Kd6 {[%emt 0:00:31]} 37. Kc3 {[%emt 0:00:32]} f5 {[%emt 0:00:43]} 38. Ra1 {[%emt 0:00:27]} Kc7 {[%emt 0:00:39]} 39. Nb3 {[%emt 0:00:27]} Kb7 {[%emt 0:00:30]} 40. Nc5+ {[%emt 0:00:00]} Ka7 {[%emt 0:00:00]} 41. Rxa6+ {[%emt 0:02:11]} Rxa6 {[%emt 0:00:12]} 42. Nxa6 {[%emt 0:00:12]} Kxa6 {[%emt 0:00:02]} 43. Kd4 {[%emt 0:00:21]} Kb5 {[%emt 0:00:11]} 44. Kxd5 {[%emt 0:00:17]} Kxb4 {[%emt 0:00:06]} 45. f3 {[%emt 0:00:28]} h5 {[%emt 0:01:55]} 46. h4 {[%emt 0:02:21]} 1-0

[Event "Najdorf Memorial-A 2022"]
[Site "Warsaw"]
[Date "2022.07.11"]
[Round "3.11"]
[White "Bartodziej, Bartosz"]
[Black "Podgorski, Maciej"]
[Result "1-0"]
[ECO "C50"]
[WhiteElo "1809"]
[BlackElo "1967"]
[Annotator "ChessBase"]
[PlyCount "89"]
[EventDate "2022.07.09"]
[EventType "swiss"]
[EventCountry "POL"]
[SourceTitle "playchess.com"]
[Source "ChessBase"]
[SourceQuality "1"]
[TimeControl "40/5400+30:1800+30"]

1. e4 {[%emt 0:00:02]} e5 {[%emt 0:00:04]} 2. Nf3 {[%emt 0:00:06]} Nc6 {[%emt 0:00:02]} 3. Bc4 {[%emt 0:00:14]} Nf6 {[%emt 0:00:03]} 4. d3 {[%emt 0:00:07]} Bc5 {[%emt 0:00:14]} 5. Nbd2 {[%emt 0:00:24]} d6 {[%emt 0:01:25]} 6. c3 {[%emt 0:00:08]} O-O {[%emt 0:00:32]} 7. Bb3 {[%emt 0:01:26]} a6 {[%emt 0:00:38]} 8. O-O {[%emt 0:00:19]} Ba7 {[%emt 0:00:24]} 9. h3 {[%emt 0:00:24]} Ne7 {[%emt 0:02:10]} 10. Re1 {[%emt 0:03:14]} Ng6 {[%emt 0:00:51]} 11. Nf1 {[%emt 0:00:56]} Be6 {[%emt 0:02:24]} 12. Ng3 {[%emt 0:01:41]} Qd7 {[%emt 0:02:59]} 13. d4 {[%emt 0:13:20]} Bxb3 {[%emt 0:03:59]} 14. Qxb3 {[%emt 0:09:01]} Qb5 {[%emt 0:04:41]} 15. Qxb5 {[%emt 0:27:03]} axb5 {[%emt 0:00:04]} 16. dxe5 {[%emt 0:01:19]} dxe5 {[%emt 0:02:32]} 17. Bg5 {[%emt 0:04:19]} Nd7 {[%emt 0:00:48]} 18. Rad1 {[%emt 0:05:59]} Nc5 {[%emt 0:04:33]} 19. Nf5 {[%emt 0:07:32]} Rfe8 {[%emt 0:16:10]} 20. Be3 {[%emt 0:06:40]} Bb6 {[%emt 0:06:56]} 21. Bxc5 {[%emt 0:01:26]} Bxc5 {[%emt 0:00:13]} 22. Rd7 {[%emt 0:00:06]} Bb6 {[%emt 0:01:08]} 23. Ng5 {[%emt 0:03:44]} Rf8 {[%emt 0:04:51]} 24. Red1 {[%emt 0:06:20]} h6 {[%emt 0:03:53]} 25. Ne6 {[%emt 0:01:35]} Rfc8 {[%emt 0:02:11]} 26. Nexg7 {[%emt 0:00:43]} Rxa2 {[%emt 0:06:41]} 27. Nh5 {[%emt 0:00:38]} Rf8 {[%emt 0:15:08]} 28. Nxh6+ {[%emt 0:00:52]} Kh7 {[%emt 0:00:07]} 29. Nxf7 {[%emt 0:01:09]} Nh4 {[%emt 0:03:55]} 30. Nxe5+ {[%emt 0:02:10]} Kh6 {[%emt 0:00:14]} 31. Ng4+ {[%emt 0:00:30]} Kxh5 {[%emt 0:04:10]} 32. Rh7+ {[%emt 0:00:02]} Kg5 {[%emt 0:02:26]} 33. Rd5+ {[%emt 0:00:01]} Nf5 {[%emt 0:02:14]} 34. exf5 {[%emt 0:00:31]} c6 {[%emt 0:03:32]} 35. Re5 {[%emt 0:00:22]} Rxb2 {[%emt 0:01:50]} 36. g3 {[%emt 0:00:30]} Rg8 {[%emt 0:01:31]} 37. f6+ {[%emt 0:02:00]} Kg6 {[%emt 0:00:03]} 38. Ree7 {[%emt 0:01:01]} Bxf2+ {[%emt 0:01:45]} 39. Nxf2 {[%emt 0:00:05]} Kxf6 {[%emt 0:00:03]} 40. Rhf7+ {[%emt 0:00:00]} Kg6 {[%emt 0:00:00]} 41. Ne4 {[%emt 0:00:55]} Kh6 {[%emt 0:01:29]} 42. g4 {[%emt 0:02:20]} Rb1+ {[%emt 0:05:06]} 43. Kg2 {[%emt 0:00:02]} Rb2+ {[%emt 0:00:05]} 44. Kg3 {[%emt 0:00:04]} Rg6 {[%emt 0:00:45]} 45. Rh7# 1-0

[Event "Najdorf Memorial-A 2022"]
[Site "Warsaw"]
[Date "2022.07.11"]
[Round "3.12"]
[White "Musial, Tomasz"]
[Black "Polak, Michal"]
[Result "1/2-1/2"]
[ECO "C77"]
[WhiteElo "2131"]
[BlackElo "1944"]
[Annotator "ChessBase"]
[PlyCount "84"]
[EventDate "2022.07.09"]
[EventType "swiss"]
[EventCountry "POL"]
[SourceTitle "playchess.com"]
[Source "ChessBase"]
[SourceQuality "1"]
[TimeControl "40/5400+30:1800+30"]

1. e4 {[%emt 0:00:06]} e5 {[%emt 0:00:31]} 2. Nf3 {[%emt 0:00:14]} Nc6 {[%emt 0:00:07]} 3. Bb5 {[%emt 0:00:40]} a6 {[%emt 0:00:09]} 4. Ba4 {[%emt 0:00:07]} Nf6 {[%emt 0:00:07]} 5. d3 {[%emt 0:00:26]} b5 {[%emt 0:00:20]} 6. Bb3 {[%emt 0:00:09]} Be7 {[%emt 0:01:05]} 7. O-O {[%emt 0:01:01]} d6 {[%emt 0:00:08]} 8. a3 {[%emt 0:02:39]} O-O {[%emt 0:03:59]} 9. Nc3 {[%emt 0:00:53]} Bg4 {[%emt 0:06:36]} 10. Be3 {[%emt 0:02:07]} Nd4 {[%emt 0:00:56]} 11. Bxd4 {[%emt 0:00:27]} exd4 {[%emt 0:00:07]} 12. Nd5 {[%emt 0:00:07]} c5 {[%emt 0:03:20]} 13. h3 {[%emt 0:03:42]} Be6 {[%emt 0:02:43]} 14. a4 {[%emt 0:06:02]} Nxd5 {[%emt 0:01:47]} 15. Bxd5 {[%emt 0:00:58]} Bxd5 {[%emt 0:00:47]} 16. exd5 {[%emt 0:00:08]} Bf6 {[%emt 0:00:22]} 17. Nd2 {[%emt 0:01:55]} Qb6 {[%emt 0:22:35]} 18. Ne4 {[%emt 0:11:46]} Be7 {[%emt 0:01:32]} 19. axb5 {[%emt 0:02:55]} axb5 {[%emt 0:00:55]} 20. Qf3 {[%emt 0:00:39]} h6 {[%emt 0:05:38]} 21. Ng3 {[%emt 0:02:10]} Rfc8 {[%emt 0:04:19]} 22. Nf5 {[%emt 0:04:20]} Bf8 {[%emt 0:00:40]} 23. Rae1 {[%emt 0:09:22]} Re8 {[%emt 0:05:51]} 24. Qf4 {[%emt 0:10:47]} Rxe1 {[%emt 0:07:19]} 25. Rxe1 {[%emt 0:00:04]} Qd8 {[%emt 0:00:53]} 26. b4 {[%emt 0:06:24]} Qg5 {[%emt 0:05:28]} 27. Qxg5 {[%emt 0:05:17]} hxg5 {[%emt 0:00:09]} 28. bxc5 {[%emt 0:00:03]} dxc5 {[%emt 0:01:04]} 29. d6 {[%emt 0:06:15]} f6 {[%emt 0:11:22]} 30. d7 {[%emt 0:04:36]} Rd8 {[%emt 0:00:33]} 31. Nd6 {[%emt 0:00:30]} b4 {[%emt 0:01:22]} 32. Nc4 {[%emt 0:00:21]} Rxd7 {[%emt 0:00:17]} 33. Ra1 {[%emt 0:00:08]} Rb7 {[%emt 0:01:56]} 34. Kf1 {[%emt 0:01:59]} b3 {[%emt 0:01:10]} 35. cxb3 {[%emt 0:01:02]} Rxb3 {[%emt 0:00:06]} 36. Ke2 {[%emt 0:00:19]} Rb7 {[%emt 0:02:28]} 37. Ra8 {[%emt 0:03:21]} Kf7 {[%emt 0:00:58]} 38. Ra6 {[%emt 0:01:08]} Re7+ {[%emt 0:01:48]} 39. Kd2 {[%emt 0:02:06]} Re6 {[%emt 0:02:10]} 40. Rxe6 {[%emt 0:00:00]} Kxe6 {[%emt 0:00:00]} 41. g4 {[%emt 0:01:08]} Bd6 {[%emt 0:03:12]} 42. Kc2 {[%emt 0:00:22]} Bf4 {[%emt 0:00:21]} 1/2-1/2

[Event "Najdorf Memorial-A 2022"]
[Site "Warsaw"]
[Date "2022.07.11"]
[Round "3.12"]
[White "Kutowski, Marcel"]
[Black "Bojczewski, Mateusz"]
[Result "0-1"]
[ECO "B17"]
[WhiteElo "1961"]
[BlackElo "1735"]
[Annotator "ChessBase"]
[PlyCount "120"]
[EventDate "2022.07.09"]
[EventType "swiss"]
[EventCountry "POL"]
[SourceTitle "playchess.com"]
[Source "ChessBase"]
[SourceQuality "1"]
[TimeControl "40/5400+30:1800+30"]

1. e4 {[%emt 0:00:03]} c6 {[%emt 0:00:06]} 2. d4 {[%emt 0:00:03]} d5 {[%emt 0:00:04]} 3. Nd2 {[%emt 0:00:05]} dxe4 {[%emt 0:00:32]} 4. Nxe4 {[%emt 0:00:03]} Nd7 {[%emt 0:00:08]} 5. Ng5 {[%emt 0:00:09]} Ngf6 {[%emt 0:00:36]} 6. Bd3 {[%emt 0:00:46]} e6 {[%emt 0:00:34]} 7. N1f3 {[%emt 0:00:54]} Bd6 {[%emt 0:01:06]} 8. Qe2 {[%emt 0:00:26]} h6 {[%emt 0:00:55]} 9. Ne4 {[%emt 0:00:12]} Nxe4 {[%emt 0:00:06]} 10. Qxe4 {[%emt 0:00:03]} Nf6 {[%emt 0:00:20]} 11. Qe2 {[%emt 0:00:03]} Qc7 {[%emt 0:02:44]} 12. Bd2 {[%emt 0:01:17]} b6 {[%emt 0:01:23]} 13. O-O-O {[%emt 0:00:35]} Bb7 {[%emt 0:00:32]} 14. Ne5 {[%emt 0:00:49]} c5 {[%emt 0:02:23]} 15. Bb5+ {[%emt 0:01:18]} Ke7 {[%emt 0:00:51]} 16. dxc5 {[%emt 0:11:04]} Qxc5 {[%emt 0:05:12]} 17. f4 {[%emt 0:12:03]} Nd5 {[%emt 0:19:14]} 18. Rhe1 {[%emt 0:05:27]} Rhc8 {[%emt 0:17:49]} 19. Ba4 {[%emt 0:06:44]} Qd4 {[%emt 0:06:04]} 20. Qb5 {[%emt 0:28:08]} Rc7 {[%emt 0:08:19]} 21. Nf3 {[%emt 0:08:44]} Qc5 {[%emt 0:04:42]} 22. f5 {[%emt 0:05:17]} Qxb5 {[%emt 0:05:48]} 23. Bxb5 {[%emt 0:00:18]} Nb4 {[%emt 0:05:18]} 24. c3 {[%emt 0:07:41]} a6 {[%emt 0:03:46]} 25. Bf1 {[%emt 0:00:37]} Bxf3 {[%emt 0:03:07]} 26. gxf3 {[%emt 0:00:07]} Bxh2 {[%emt 0:01:04]} 27. fxe6 {[%emt 0:01:02]} fxe6 {[%emt 0:00:39]} 28. f4 {[%emt 0:05:05]} Kf6 {[%emt 0:03:43]} 29. c4 {[%emt 0:00:18]} Nd5 {[%emt 0:01:22]} 30. Kb1 {[%emt 0:02:18]} Nxf4 {[%emt 0:01:14]} 31. Bc3+ {[%emt 0:00:23]} Kf5 {[%emt 0:02:43]} 32. Re5+ {[%emt 0:03:56]} Kg4 {[%emt 0:01:31]} 33. Rd4 {[%emt 0:00:19]} Kf3 {[%emt 0:01:46]} 34. Bd2 {[%emt 0:00:37]} Rf8 {[%emt 0:00:22]} 35. Re3+ {[%emt 0:00:35]} Kg4 {[%emt 0:00:38]} 36. Bh3+ {[%emt 0:00:24]} Kh5 {[%emt 0:00:54]} 37. Re5+ {[%emt 0:00:27]} Kg6 {[%emt 0:00:25]} 38. Bg4 {[%emt 0:00:39]} Rf6 {[%emt 0:00:36]} 39. Bc1 {[%emt 0:00:28]} Re7 {[%emt 0:00:34]} 40. Rd2 {[%emt 0:00:00]} Nd3 {[%emt 0:00:00]} 41. Ree2 {[%emt 0:02:49]} Ne5 {[%emt 0:05:20]} 42. Rd4 {[%emt 0:08:27]} Nxg4 {[%emt 0:04:52]} 43. Rxg4+ {[%emt 0:01:03]} Kf5 {[%emt 0:02:48]} 44. Rd4 {[%emt 0:01:43]} Bc7 {[%emt 0:00:58]} 45. b4 {[%emt 0:00:02]} e5 {[%emt 0:01:52]} 46. Rh4 {[%emt 0:00:02]} Ke6 {[%emt 0:02:27]} 47. c5 {[%emt 0:00:48]} g5 {[%emt 0:02:05]} 48. Rh3 {[%emt 0:00:03]} bxc5 {[%emt 0:01:12]} 49. bxc5 {[%emt 0:00:07]} Kd5 {[%emt 0:00:45]} 50. Rd3+ {[%emt 0:00:18]} Kc6 {[%emt 0:00:10]} 51. Be3 {[%emt 0:00:17]} e4 {[%emt 0:02:30]} 52. Ra3 {[%emt 0:00:05]} a5 {[%emt 0:00:12]} 53. Rb3 {[%emt 0:00:30]} g4 {[%emt 0:01:06]} 54. a4 {[%emt 0:00:14]} g3 {[%emt 0:01:00]} 55. Reb2 {[%emt 0:00:08]} Rf1+ {[%emt 0:00:41]} 56. Ka2 {[%emt 0:00:04]} h5 {[%emt 0:03:34]} 57. Rb7 {[%emt 0:01:28]} g2 {[%emt 0:01:34]} 58. Rb1 {[%emt 0:01:02]} Ref7 {[%emt 0:01:52]} 59. R7b2 {[%emt 0:00:12]} Rxb1 {[%emt 0:00:20]} 60. Rxb1 {[%emt 0:00:07]} Rf1 {[%emt 0:00:17]} 0-1

[Event "Najdorf Memorial-A 2022"]
[Site "Warsaw"]
[Date "2022.07.11"]
[Round "3.13"]
[White "Sowul, Bartosz"]
[Black "Pesko, Tomasz"]
[Result "1-0"]
[ECO "B24"]
[WhiteElo "2283"]
[BlackElo "1830"]
[Annotator "ChessBase"]
[PlyCount "77"]
[EventDate "2022.07.09"]
[EventType "swiss"]
[EventCountry "POL"]
[SourceTitle "playchess.com"]
[Source "ChessBase"]
[SourceQuality "1"]
[TimeControl "40/5400+30:1800+30"]

1. e4 c5 2. Nc3 Nc6 3. Bb5 Nd4 4. Nf3 Nxb5 5. Nxb5 a6 6. Nc3 e6 7. d4 cxd4 8. Qxd4 Ne7 9. Bf4 Nc6 10. Qe3 Qa5 11. O-O Bc5 12. Qd3 O-O 13. a3 Be7 14. Bd6 Qd8 15. Rad1 b5 16. Rfe1 Bxd6 17. Qxd6 Ra7 18. Rd3 Qc7 19. Qc5 Na5 20. Qh5 Nc4 21. b3 Nxa3 22. e5 f5 23. exf6 g6 24. Qh6 d5 25. Nxd5 exd5 26. Re7 Qxe7 27. fxe7 Rxe7 28. Qg5 Ref7 29. Qxd5 Bb7 30. Qc5 Bxf3 31. gxf3 b4 32. Qxb4 Nxc2 33. Qc3 Na3 34. Qa5 Nc2 35. Kf1 Rf6 36. Qc5 Na1 37. b4 R8f7 38. Qc1 Rb7 39. Qc8+ 1-0

[Event "Najdorf Memorial-A 2022"]
[Site "Warsaw"]
[Date "2022.07.11"]
[Round "3.13"]
[White "Raczek, Krzysztof"]
[Black "Kotowicz, Kamil"]
[Result "1-0"]
[ECO "B13"]
[WhiteElo "2114"]
[BlackElo "1770"]
[Annotator "ChessBase"]
[PlyCount "57"]
[EventDate "2022.07.09"]
[EventType "swiss"]
[EventCountry "POL"]
[SourceTitle "playchess.com"]
[Source "ChessBase"]
[SourceQuality "1"]
[TimeControl "40/5400+30:1800+30"]

1. e4 {[%emt 0:00:01]} c6 {[%emt 0:00:12]} 2. d4 {[%emt 0:00:06]} d5 {[%emt 0:00:05]} 3. exd5 {[%emt 0:00:04]} cxd5 {[%emt 0:00:10]} 4. Bd3 {[%emt 0:00:03]} Nf6 {[%emt 0:00:34]} 5. h3 {[%emt 0:00:08]} Nc6 {[%emt 0:00:16]} 6. c3 {[%emt 0:00:28]} e6 {[%emt 0:01:45]} 7. Nf3 {[%emt 0:00:05]} Bd6 {[%emt 0:00:40]} 8. O-O {[%emt 0:02:57]} O-O {[%emt 0:00:21]} 9. Re1 {[%emt 0:00:04]} Qc7 {[%emt 0:00:54]} 10. Qe2 {[%emt 0:00:35]} h6 {[%emt 0:01:06]} 11. Nbd2 {[%emt 0:00:23]} Re8 {[%emt 0:01:31]} 12. Ne5 {[%emt 0:01:02]} Bxe5 {[%emt 0:00:17]} 13. dxe5 {[%emt 0:00:05]} Nd7 {[%emt 0:00:08]} 14. Nf3 {[%emt 0:01:27]} Nf8 {[%emt 0:03:09]} 15. Bd2 {[%emt 0:01:48]} a6 {[%emt 0:00:28]} 16. b4 {[%emt 0:05:29]} Ng6 {[%emt 0:03:56]} 17. g4 {[%emt 0:03:22]} Qe7 {[%emt 0:02:21]} 18. h4 Nxh4 {[%emt 0:04:16]} 19. g5 {[%emt 0:22:24]} Nf5 {[%emt 0:06:45]} 20. gxh6 {[%emt 0:02:12]} gxh6 {[%emt 0:02:31]} 21. Kh1 {[%emt 0:06:57]} Qf8 {[%emt 0:02:50]} 22. Rg1+ {[%emt 0:01:54]} Kh8 {[%emt 0:00:17]} 23. Nh4 {[%emt 0:01:21]} Nce7 {[%emt 0:02:51]} 24. Qh5 {[%emt 0:00:38]} Ng8 {[%emt 0:01:00]} 25. Rg2 {[%emt 0:03:06]} Nxh4 {[%emt 0:01:52]} 26. Qxh4 {[%emt 0:01:08]} f5 {[%emt 0:00:24]} 27. Rag1 {[%emt 0:00:25]} Qf7 {[%emt 0:02:24]} 28. Bxh6 {[%emt 0:00:21]} Nxh6 {[%emt 0:00:15]} 29. Rg6 {[%emt 0:00:00]} 1-0

[Event "Najdorf Memorial-A 2022"]
[Site "Warsaw"]
[Date "2022.07.11"]
[Round "3.14"]
[White "Vanduyfhuys, Daria"]
[Black "Jaskiewicz, Kacper"]
[Result "1-0"]
[ECO "E11"]
[WhiteElo "2094"]
[BlackElo "1756"]
[Annotator "ChessBase"]
[PlyCount "89"]
[EventDate "2022.07.09"]
[EventType "swiss"]
[EventCountry "POL"]
[SourceTitle "playchess.com"]
[Source "ChessBase"]
[SourceQuality "1"]
[TimeControl "40/5400+30:1800+30"]

1. d4 {[%emt 0:00:02]} Nf6 {[%emt 0:00:03]} 2. c4 {[%emt 0:00:07]} e6 {[%emt 0:00:02]} 3. Nf3 {[%emt 0:00:09]} Bb4+ {[%emt 0:00:15]} 4. Bd2 {[%emt 0:00:07]} a5 {[%emt 0:00:13]} 5. g3 {[%emt 0:00:24]} b6 {[%emt 0:00:03]} 6. Bg2 {[%emt 0:00:45]} Bb7 {[%emt 0:00:02]} 7. O-O {[%emt 0:00:44]} O-O {[%emt 0:00:03]} 8. Nc3 {[%emt 0:00:50]} d6 {[%emt 0:00:04]} 9. Qc2 {[%emt 0:01:36]} Nbd7 {[%emt 0:00:05]} 10. Rfd1 {[%emt 0:03:30]} Qe7 {[%emt 0:02:09]} 11. b3 {[%emt 0:15:54]} Bxc3 {[%emt 0:01:02]} 12. Bxc3 {[%emt 0:00:06]} Be4 {[%emt 0:00:03]} 13. Qb2 {[%emt 0:01:14]} Bb7 {[%emt 0:01:07]} 14. Nd2 {[%emt 0:14:50]} Bxg2 {[%emt 0:03:58]} 15. Kxg2 {[%emt 0:00:06]} d5 {[%emt 0:00:48]} 16. Re1 {[%emt 0:04:04]} Ne4 {[%emt 0:03:01]} 17. Nxe4 {[%emt 0:05:47]} dxe4 {[%emt 0:00:04]} 18. f3 {[%emt 0:00:44]} exf3+ {[%emt 0:09:10]} 19. exf3 {[%emt 0:00:30]} Qg5 {[%emt 0:00:20]} 20. Rad1 {[%emt 0:02:26]} Rfe8 {[%emt 0:15:15]} 21. Re4 {[%emt 0:12:12]} f5 {[%emt 0:12:35]} 22. Re2 {[%emt 0:01:14]} Kf7 {[%emt 0:00:31]} 23. Rde1 {[%emt 0:02:50]} Rad8 {[%emt 0:04:52]} 24. Qa3 {[%emt 0:10:20]} Nf6 {[%emt 0:20:28]} 25. Qa4 {[%emt 0:03:31]} Nh5 {[%emt 0:13:05]} 26. Kh1 {[%emt 0:01:37]} Re7 {[%emt 0:01:58]} 27. d5 {[%emt 0:07:24]} Rde8 {[%emt 0:00:42]} 28. dxe6+ {[%emt 0:06:24]} Rxe6 {[%emt 0:02:58]} 29. Rxe6 {[%emt 0:00:55]} Rxe6 {[%emt 0:00:09]} 30. Rxe6 {[%emt 0:00:04]} Kxe6 {[%emt 0:00:15]} 31. Qe8+ {[%emt 0:00:04]} Qe7 {[%emt 0:01:31]} 32. Qxh5 {[%emt 0:00:10]} Qd7 {[%emt 0:00:40]} 33. Kg2 {[%emt 0:00:35]} g6 {[%emt 0:01:14]} 34. Qg5 {[%emt 0:00:14]} Qf7 {[%emt 0:00:50]} 35. Qd8 {[%emt 0:00:13]} c6 {[%emt 0:01:37]} 36. Qxb6 {[%emt 0:00:24]} Qd7 {[%emt 0:01:18]} 37. Qd4 {[%emt 0:00:12]} Qc8 {[%emt 0:00:16]} 38. Qf6+ {[%emt 0:00:19]} Kd7 {[%emt 0:00:07]} 39. c5 {[%emt 0:00:57]} Qa6 {[%emt 0:00:19]} 40. Qf7+ {[%emt 0:00:00]} Kc8 {[%emt 0:00:00]} 41. Qe8+ {[%emt 0:00:37]} Kb7 {[%emt 0:00:31]} 42. Qd7+ {[%emt 0:01:11]} Ka8 {[%emt 0:00:03]} 43. Kf2 {[%emt 0:01:50]} Qb5 {[%emt 0:00:28]} 44. Qd8+ {[%emt 0:00:12]} Ka7 {[%emt 0:00:02]} 45. Qxa5+ {[%emt 0:00:12]} 1-0